Cogmind - Beta 13 @@@ ROGUE MODE // 2024.04.28 @ 18:04:37 Player: Kate+Gabe4evr Result: Self-destructed Performance ------------- Evolutions (3) 1500 Regions Visited (7) 1400 Robots Destroyed (54) 270 Value Destroyed (1844) 1844 Prototype IDs (1) 20 Alien Tech Used (0) 0 Bonus (1524) 1524 TOTAL SCORE: 6558 Bonus ------- High Alert Combat Kills 162 Follower Combat Kills 162 Entered Garrisons 200 Used RIF Installer 1000 Cogmind --------- Core Integrity 149/700 Matter 0/300 Energy 100/100 System Corruption 2% Temperature Cool (0) Movement Core (50) Location -7/Factory Parts ------- > --- POWER (1) -------- (None) > --- PROPULSION (6) --- (None) > --- UTILITY (3) ------ (None) > --- WEAPON (3) ------- (None) > --- INVENTORY (5) ---- Improved Ion Engine Small Matter Pod (50) Kinecellerator Missile Launcher Katana Peak State ------------ > --- POWER ------------ Light Deuterium Engine > --- PROPULSION ------- Flight Unit Flight Unit Flight Unit Flight Unit > --- UTILITY ---------- Large Storage Unit > --- WEAPON ----------- Gauss Cannon Gauss Cannon Gauss Cannon > --- INVENTORY -------- Improved Ion Engine Improved Heat Sink Small Matter Pod Kinecellerator Light Assault Rifle Mini Assault Cannon Missile Launcher Plasma Cutter Katana [Rating: 22] Favorites ----------- Power Light Nuclear Core Engine Light Ion Engine Power Core Light Nuclear Core Propulsion Light Treads Treads Light Treads Flight Unit Flight Unit Utility Large Storage Unit Device Improved Heat Sink Storage Large Storage Unit Protection Light Armor Plating Weapon Light Assault Rifle Ballistic Gun Light Assault Rifle Ballistic Cannon Light Cannon Special Weapon Plasma Cutter Slashing Weapon Katana Build | -11 -10 -9 -9 -8 -8 -8 -7 ------- Run | Yrd Mat Mat Min Mat Gar Mat Fac Slots Evolved 6 | . . 2 . 2 . . 2 Power . | . . . . . . . . Propulsion 4 | . . 1 . 1 . . 2 Utility 1 | . . . . 1 . . . Weapon 1 | . . 1 . . . . . Parts Attached 77 | 5 . 6 1 1 32 11 21 Power 9 | 1 . . . . 4 1 3 Engine 6 | 1 . . . . 2 . 3 Core 3 | . . . . . 2 1 . Reactor . | . . . . . . . . Propulsion 37 | 2 . 3 . 1 14 6 11 Treads 13 | 2 . 3 . 1 7 . . Leg . | . . . . . . . . Wheel . | . . . . . . . . Hover . | . . . . . . . . Flight 24 | . . . . . 7 6 11 Utility 7 | . . 2 1 . 3 1 . Device 2 | . . . . . 1 1 . Storage 1 | . . 1 . . . . . Processor . | . . . . . . . . Hackware . | . . . . . . . . Protection 4 | . . 1 1 . 2 . . Artifact . | . . . . . . . . Weapon 24 | 2 . 1 . . 11 3 7 Energy Gun . | . . . . . . . . Energy Cannon . | . . . . . . . . Ballistic Gun 13 | 2 . . . . 7 3 1 Ballistic Cannon 8 | . . 1 . . 2 . 5 Launcher . | . . . . . . . . Special Weapon 1 | . . . . . . . 1 Impact Weapon . | . . . . . . . . Slashing Weapon 2 | . . . . . 2 . . Piercing Weapon . | . . . . . . . . Special Melee Weapon . | . . . . . . . . Unidentified Prototypes 1 | . . . . . . . 1 Parts Lost 36 | . . . . . 18 4 14 Power 4 | . . . . . 2 1 1 Propulsion 19 | . . . . . 7 3 9 Utility 3 | . . . . . 3 . . Weapon 10 | . . . . . 6 . 4 Highest Loss Streak 14 | . . . . . 7 3 14 To Critical Strikes . | . . . . . . . . Average Slot Usage (%) 48 | . 71 85 100 83 83 78 5 Engine 2 | . 14 11 11 9 1 . . Core 2 | . . . . . 6 7 . Treads 12 | . 28 31 33 29 23 . . Flight 5 | . . . . . 6 35 3 Device 3 | . . . . . 8 9 . Storage 4 | . . 6 11 9 9 9 . Protection 2 | . . 3 11 9 4 . . Ballistic Gun 10 | . 28 22 22 18 18 17 . Ballistic Cannon 2 | . . 11 11 9 2 . . Naked Turns 2332 | . . . . . . . 2332 Heaviest Build 38 | 5 5 31 35 35 38 33 32 Greatest Support 83 | 40 40 63 63 83 83 16 24 Greatest Overweight (x) 11 | . . . . . 11 2 8 Average Overweight (x) . | . . . . . . 1 . Largest Inventory Capacity 15 | 5 5 15 15 15 15 15 15 Average Capacity 10 | 5 5 10 15 15 15 15 5 Most Carried 15 | 1 3 4 7 8 15 15 15 Average Carried 7 | . 1 3 5 7 10 13 5 Final Capacity 15 | 5 5 15 15 15 15 15 5 Final Carried 15 | 1 3 4 7 8 15 13 5 Class Distribution -------------------- 46% | Mutant 14% | Scavenger-Tank 13% | Tank 11% | Scavenger-Mutant 8% | Scavenger-Gunner Dominant Class ---------------- Mutant | -10/Materials Gunner | -9/Materials Tank | -9/Mines Tank | -8/Materials Scavenger-Tank | -8/Garrison Scavenger-Gunner | -8/Materials Mutant | -7/Factory Resources | -11 -10 -9 -9 -8 -8 -8 -7 ----------- Run | Yrd Mat Mat Min Mat Gar Mat Fac Matter Collected 1485 | 242 16 121 52 . 719 143 192 Remotely . | . . . . . . . . Salvage Created 1888 | . 81 237 21 41 1065 354 89 Parts 110 | . 5 15 . 3 58 20 9 Haulers Intercepted 3 | . . 2 . 1 . . . Recyclers Shooed 1 | . . . . . . 1 . Parts Field Recycled . | . . . . . . . . Retrieved Matter . | . . . . . . . . Parts Self-Destructed . | . . . . . . . . Prevented . | . . . . . . . . Kills | -11 -10 -9 -9 -8 -8 -8 -7 ------- Run | Yrd Mat Mat Min Mat Gar Mat Fac Combat Hostiles Destroyed 52 | . 2 4 3 . 30 9 4 Guns 36 | . 2 . . . 25 9 . Cannons 16 | . . 4 3 . 5 . 4 Classes Destroyed 10 | . 1 2 1 . 4 1 1 Worker 1 | . . . . . . 1 . Builder 1 | . . . . . . . 1 Hauler 3 | . . 2 . 1 . . . Swarmer 13 | . . . . . 10 3 . Grunt 25 | . 2 3 . . 12 5 3 Brawler 2 | . . . . . 2 . . Duelist 1 | . . . . . 1 . . Sentry 4 | . . 1 . . 2 1 . Programmer 4 | . . . . . 3 . 1 Assembled 3 | . . . 3 . . . . Best Kill Streak 5 | . 2 4 2 1 5 3 5 Combat Bots Only 5 | . 2 2 2 . 5 3 4 Max Kills in Single Turn 1 | . 1 1 1 1 1 1 1 Gunslinging . | . . . . . . . . Exploded . | . . . . . . . . Melee . | . . . . . . . . Uniques/NPCs Destroyed . | . . . . . . . . Combat | -11 -10 -9 -9 -8 -8 -8 -7 -------- Run | Yrd Mat Mat Min Mat Gar Mat Fac Hostile Shots Fired 505 | . 9 9 2 . 243 58 184 Missed 156 | . 3 2 . . 65 21 65 Damage Taken 4411 | . 68 89 52 . 2346 513 1343 Core 1043 | . . . 12 . 296 184 551 Absorbed by Shields . | . . . . . . . . Core Remaining (%) 77 | 100 100 . 97 . . 12 . Volleys Fired 193 | . 8 11 7 2 110 32 23 Largest 3 | . 2 3 3 3 3 3 3 Hottest 144 | . 40 75 75 75 75 66 144 Shots Fired 478 | . 16 33 21 6 302 55 45 Gun 378 | . 16 22 14 4 264 55 3 Cannon 95 | . . 11 7 2 38 . 37 Launcher . | . . . . . . . . Special 5 | . . . . . . . 5 Kinetic 473 | . 16 33 21 6 302 55 40 Thermal 5 | . . . . . . . 5 Explosive . | . . . . . . . . Electromagnetic . | . . . . . . . . Robot Hit Streak 29 | . 7 17 11 2 29 8 8 Robot Miss Streak 6 | . 3 1 5 2 6 3 3 Penetration Max 1 | . . . . . . . 1 Secondary Targets 7 | . . . . . 6 1 . Max Gunslinging Chain 1 | . . . . . 1 1 . Shots Hit Robots 308 | . 11 28 9 2 197 38 23 Core Hits 145 | 1 4 13 6 2 87 22 10 Critical Kills 2 | . . . . . 2 . . Critical Parts Destroyed 1 | . . . . . 1 . . Critical Strikes 5 | . . . . . 4 . 1 Destroy 3 | . . . . . 3 . . Blast 2 | . . . . . 1 . 1 Melee Attacks 1 | . . . . . 1 . . Impact . | . . . . . . . . Slashing 1 | . . . . . 1 . . Piercing . | . . . . . . . . Sneak Attacks . | . . . . . . . . Combat Hostiles . | . . . . . . . . Follow-up Attacks . | . . . . . . . . Damage Inflicted 3905 | 4 92 320 114 15 1943 565 852 Guns 2339 | . 87 157 42 15 1476 562 . Cannons 1379 | . . 156 72 . 467 . 684 Explosions 168 | . . . . . . . 168 Melee . | . . . . . . . . Ramming 19 | 4 5 7 . . . 3 . Kinetic 3718 | . 87 313 114 15 1943 562 684 Thermal 168 | . . . . . . . 168 Explosive . | . . . . . . . . Electromagnetic . | . . . . . . . . Impact . | . . . . . . . . Slashing . | . . . . . . . . Piercing . | . . . . . . . . Highest Corruption 9 | . . . . . 9 9 2 Average Corruption 3 | . . . . . 5 9 1 Corruption Purged . | . . . . . . . . Corruption Blocked . | . . . . . . . . Effects 76 | . . . . . 33 15 28 Message Errors 15 | . . . . . 7 4 4 Matter Fused 13 | . . . . . 7 2 4 Heat Flow Errors 10 | . . . . . 1 1 8 Energy Discharges 14 | . . . . . 9 2 3 Parts Rejected 1 | . . . . . . 1 . Data Loss (minor) 13 | . . . . . 5 2 6 Data Loss (major) 4 | . . . . . 1 2 1 Alerts 3 | . . . . . 1 1 1 Weapon Failures 3 | . . . . . 2 . 1 Overload Shots . | . . . . . . . . Overflow Damage 102 | . . . . . 4 . 98 Projectiles 13 | . . . . . 4 . 9 Explosions 89 | . . . . . . . 89 Melee . | . . . . . . . . Knockbacks 8 | . 1 1 . . 2 . 4 Impact 1 | . 1 . . . . . . Kinetic 7 | . . 1 . . 2 . 4 Secondary . | . . . . . . . . Self-Inflicted Damage 80 | . . . . . . 1 79 Shots 1 | . . . . . . . 1 Rammed 7 | 2 1 1 1 . . 1 1 Targets Rammed 7 | 2 1 1 1 . . 1 1 Kicked . | . . . . . . . . Crushed . | . . . . . . . . Highest Temperature 712 | . 6 78 76 33 203 114 712 Average Temperature 102 | . 6 29 33 18 36 34 175 Received Heat Transfer 1530 | . 36 42 6 . 837 243 366 Effects 12 | . . . . . . . 12 Shutdowns 1 | . . . . . . . 1 Energy Bleed 4 | . . . . . . . 4 Matter Decay 1 | . . . . . . . 1 Damage (minor) 5 | . . . . . . . 5 Damage (core) 1 | . . . . . . . 1 Siege Activations . | . . . . . . . . Robots Corrupted . | . . . . . . . . Combat Hostiles . | . . . . . . . . Parts Fried . | . . . . . . . . Impact Corruptions . | . . . . . . . . Robots Melted . | . . . . . . . . Combat Hostiles . | . . . . . . . . Parts Melted . | . . . . . . . . Heat Transferred 100 | . . . . . . . 100 Parts Sabotaged . | . . . . . . . . Parts Stolen . | . . . . . . . . Parts Stripped . | . . . . . . . . Power Chain Reactions . | . . . . . . . . Alert | -11 -10 -9 -9 -8 -8 -8 -7 ------- Run | Yrd Mat Mat Min Mat Gar Mat Fac Peak Influence 716 | . 50 150 288 33 716 505 353 Initial 349 | . . 20 58 26 21 349 229 Average 176 | . 18 89 156 28 362 434 57 Maximum Alert Level 3 | . . . 1 . 3 2 1 Low Security (%) 64 | 100 100 100 63 100 31 . 86 Level 1 20 | . . . 36 . 32 35 13 Level 2 12 | . . . . . 31 64 . Level 3 1 | . . . . . 4 . . Level 4 . | . . . . . . . . Level 5 . | . . . . . . . . High Security . | . . . . . . . . Max Security . | . . . . . . . . Squads Dispatched 12 | . 2 1 . . . 1 8 Investigation 3 | . 2 . . . . . 1 Extermination 6 | . . . . . . . 6 Reinforcement 3 | . . 1 . . . 1 1 Assault . | . . . . . . . . Garrison . | . . . . . . . . Intercept . | . . . . . . . . Searches Triggered . | . . . . . . . . Construction Impeded . | . . . . . . . . Haulers Reinforced . | . . . . . . . . Active Scanning Responses . | . . . . . . . . Cargo Convoy Interrupts 1 | . . . . . . . 1 Stealth | -11 -10 -9 -9 -8 -8 -8 -7 --------- Run | Yrd Mat Mat Min Mat Gar Mat Fac Distress Signals 2 | . . . . . . 2 . Communications Jammed . | . . . . . . . . Distress Signals . | . . . . . . . . Times Spotted 76 | . 4 5 12 . 33 12 10 Peak Tracking Total 6 | . 2 3 3 . 6 5 5 Tactical Retreats 5 | . . . . . 2 . 3 Traps | -11 -10 -9 -9 -8 -8 -8 -7 ------- Run | Yrd Mat Mat Min Mat Gar Mat Fac Traps Triggered 12 | . 2 . . . 6 . 4 Indirectly . | . . . . . . . . Trap Hack Attempts . | . . . . . . . . Triggered . | . . . . . . . . Disarmed . | . . . . . . . . Reprogrammed . | . . . . . . . . Reused . | . . . . . . . . Traps Extracted . | . . . . . . . . Installed . | . . . . . . . . Triggered 4 | . . . . . . . 4 Machines | -11 -10 -9 -9 -8 -8 -8 -7 ---------- Run | Yrd Mat Mat Min Mat Gar Mat Fac Machines Disabled 5 | . . . 1 . . . 4 Max in Single Turn 4 | . . . . . . . 4 Garrison Access 1 | . . . . . . 1 . Garrison Relay 1 | . . . . . 1 . . Machines Repaired . | . . . . . . . . Machines Dismantled . | . . . . . . . . Machines Sabotaged . | . . . . . . . . Overloaded Fab Kills . | . . . . . . . . Hacking | -11 -10 -9 -9 -8 -8 -8 -7 --------- Run | Yrd Mat Mat Min Mat Gar Mat Fac Machines Accessed 4 | . . . . 1 2 1 . Terminals 2 | . . . . . 2 . . Fabricators . | . . . . . . . . Repair Stations . | . . . . . . . . Recycling Units . | . . . . . . . . Scanalyzers . | . . . . . . . . Garrison Access 2 | . . . . 1 . 1 . Total Hacks 5 | . . . . 1 3 1 . Successful 3 | . . . . 1 1 1 . Failed 2 | . . . . . 2 . . Catastrophic 1 | . . . . . 1 . . Database Lockouts . | . . . . . . . . Manual . | . . . . . . . . Terminals 3 | . . . . . 3 . . Fabricators . | . . . . . . . . Repair Stations . | . . . . . . . . Recycling Units . | . . . . . . . . Scanalyzers . | . . . . . . . . Garrison Access 2 | . . . . 1 . 1 . Terminal Hacks 1 | . . . . . 1 . . Patrol Navigation 1 | . . . . . 1 . . Fabricator Hacks . | . . . . . . . . Repair Station Hacks . | . . . . . . . . Recycling Unit Hacks . | . . . . . . . . Scanalyzer . | . . . . . . . . Garrison Access Hacks 2 | . . . . 1 . 1 . Unlock Access 1 | . . . . 1 . . . Seal Access 1 | . . . . . . 1 . Unauthorized Hacks . | . . . . . . . . Terminals . | . . . . . . . . Fabricators . | . . . . . . . . Repair Stations . | . . . . . . . . Recycling Units . | . . . . . . . . Scanalyzers . | . . . . . . . . Garrison Access . | . . . . . . . . Data Cores Recovered . | . . . . . . . . Used . | . . . . . . . . Hacking Detections 1 | . . . . . 1 . . Full Trace Events 1 | . . . . . 1 . . Feedback Events . | . . . . . . . . Feedback Blocked . | . . . . . . . . Robot Schematics Acquired . | . . . . . . . . Robots Built . | . . . . . . . . Authchips . | . . . . . . . . Time . | . . . . . . . . Total Robot Build Rating . | . . . . . . . . Part Schematics Acquired . | . . . . . . . . Parts Built . | . . . . . . . . Authchips . | . . . . . . . . Time . | . . . . . . . . Total Part Build Rating . | . . . . . . . . Parts Repaired . | . . . . . . . . Time . | . . . . . . . . Parts Recycled . | . . . . . . . . Recycled Matter . | . . . . . . . . Retrieved Matter . | . . . . . . . . Retrieved Components . | . . . . . . . . Parts Scanalyzed . | . . . . . . . . Part Schematics Acquired . | . . . . . . . . Parts Damaged . | . . . . . . . . Bothacking | -11 -10 -9 -9 -8 -8 -8 -7 ------------ Run | Yrd Mat Mat Min Mat Gar Mat Fac Used RIF Installer 2 | . . . . . 2 . . Threat Obfuscator 1 | . . . . . 1 . . Robots Hacked . | . . . . . . . . Non-combat . | . . . . . . . . Combat . | . . . . . . . . Robot Hacks Applied . | . . . . . . . . Relay Couplers Released 5 | . . . . . 5 . . Machine Destruction 5 | . . . . . 5 . . Fabnet Peak Effective % . | . . . . . . . . Robots Rewired . | . . . . . . . . Allies Hacked . | . . . . . . . . Hacks Repelled . | . . . . . . . . Allies | -11 -10 -9 -9 -8 -8 -8 -7 -------- Run | Yrd Mat Mat Min Mat Gar Mat Fac Total Allies 6 | . . . 6 . . . . Largest Group 4 | . . . 4 2 2 . . Highest-Rated Group 71 | . . . 71 39 39 . . Highest-Rated Ally 31 | . . . 31 31 31 . . Total Orders . | . . . . . . . . Ally Attacks 64 | . . . 57 . 7 . . Total Damage 1080 | . . . 972 . 108 . . Kills 13 | . . . 13 . . . . Allies Corrupted . | . . . . . . . . Allies Melted . | . . . . . . . . Intel | -11 -10 -9 -9 -8 -8 -8 -7 ------- Run | Yrd Mat Mat Min Mat Gar Mat Fac Robot Analysis Total . | . . . . . . . . Derelict Logs Recovered 2 | . . . 2 . . . . Drone Launches . | . . . . . . . . Drone Recoveries . | . . . . . . . . Exploration | -11 -10 -9 -9 -8 -8 -8 -7 ------------- Run | Yrd Mat Mat Min Mat Gar Mat Fac Turns Passed 6343 | 80 193 251 521 133 1893 349 2923 Spaces Moved 2019 | 46 106 116 306 78 892 166 309 Core 29 | 4 . . . . 20 . 5 Treads 1300 | 42 106 116 306 78 652 . . Legs . | . . . . . . . . Wheels . | . . . . . . . . Hover . | . . . . . . . . Flight 690 | . . . . . 220 166 304 Fastest Speed 25 | 50 160 160 160 160 111 111 25 Average Speed 142 | 150 160 160 160 160 163 146 46 Slowest Speed 680 | 160 160 160 160 160 680 191 450 Overloaded Moves . | . . . . . . . . Propulsion Burnouts . | . . . . . . . . Robots Hopped 2 | . . . . . . . 2 Cave-ins Triggered 2 | . . . . . . . 2 Exploration Rate (%) 25 | 4 25 12 55 11 73 16 9 Regions Visited 7 Branch Regions 1 Pre-discovered Areas 1 | . . . 1 . . . . Known Exits Taken 2 | . . . 1 1 . . . Unknown Exits Taken 4 | 1 1 1 . . . 1 . Scrap Searched 2 | . . . 2 . . . . Spaces Dug . | . . . . . . . . Terrain Destroyed 62 | . . . . . . . 62 Melee . | . . . . . . . . Projectile 10 | . . . . . . . 10 AOE 52 | . . . . . . . 52 Terrain Rammed . | . . . . . . . . Walls Destroyed . | . . . . . . . . Machines Disabled . | . . . . . . . . Actions | -11 -10 -9 -9 -8 -8 -8 -7 --------- Run | Yrd Mat Mat Min Mat Gar Mat Fac Total 5147 | 53 116 158 324 83 1143 223 3047 Wait 2739 | . . 25 6 . 15 14 2679 Move 2008 | 45 106 115 305 77 890 165 305 Hop 2 | . . . . . . . 2 Pick Up 20 | 1 2 . 3 2 9 . 3 Fast Attach 36 | 5 . 3 . 1 14 5 8 Attach 22 | . . 1 . . 7 3 11 Detach 10 | . . . . . 5 . 5 Swap 19 | . . 2 1 . 11 3 2 Drop 19 | . . . 1 1 9 . 8 Fire 193 | . 8 11 7 2 110 32 23 Melee 1 | . . . . . 1 . . Ram 2 | . . . . . . 1 1 Kick . | . . . . . . . . Crush 4 | 2 . 1 1 . . . . Escape Stasis 72 | . . . . . 72 . . Rewire . | . . . . . . . . Trap . | . . . . . . . . Miscellaneous . | . . . . . . . . Route ------- -11/Scrapyard -10/Materials -9/Materials -9/Mines -8/Materials -8/Garrison (discovered 3 exits: *Mat x3) -8/Materials -7/Factory History --------- Turn | Location | Event 25 | -11/Scrapyard | Discovered new exit (range 16) 81 | -11/Scrapyard | Entered Materials 250 | -10/Materials | Discovered new exit (range 16) 274 | -10/Materials | Entered another Materials area 274 | -9/Materials | Evolved 2 slots: Propulsion x1, Weapon x1 456 | -9/Materials | Discovered new exit (range 12) 525 | -9/Materials | Entered Mines 533 | -9/Mines | Assisted by bots powering up and referring to "LRC-V3" 536 | -9/Mines | Assembled infested the area 632 | -9/Mines | Received a Mining Laser from a helpful Derelict 717 | -9/Mines | Build established: Tank 767 | -9/Mines | Identified exit to Materials 974 | -9/Mines | Learned location of Zion (-6) 1012 | -9/Mines | Received a Rocket Launcher from a helpful Derelict 1046 | -9/Mines | Entered Materials 1046 | -8/Materials | Accompanied by 2 allies 1046 | -8/Materials | Evolved 2 slots: Propulsion x1, Utility x1 1051 | -8/Materials | Led the pair of lost Derelicts to an unsafe place 1178 | -8/Materials | Identified exit to Garrison 1179 | -8/Materials | Entered Garrison 1179 | -8/Garrison | Accompanied by 2 allies 1203 | -8/Garrison | Triggered checkpoint 1409 | -8/Garrison | Triggered checkpoint 1420 | -8/Garrison | Triggered checkpoint 1480 | -8/Garrison | Lost 3 parts (1n1u1w) 1641 | -8/Garrison | Discovered new exit (range 13) 1743 | -8/Garrison | Build established: Scavenger-Gunner 1899 | -8/Garrison | Triggered checkpoint 2042 | -8/Garrison | Discovered new exit (range 11) 2063 | -8/Garrison | Build established: Scavenger-Tank 2097 | -8/Garrison | Triggered checkpoint 2097 | -8/Garrison | Garrison Relay disabled 2239 | -8/Garrison | Installed Relay Interface Framework 2295 | -8/Garrison | Triggered checkpoint 2397 | -8/Garrison | Triggered checkpoint 2423 | -8/Garrison | Discovered new exit (range 12) 2509 | -8/Garrison | Expanded RIF knowledge: Threat Obfuscation 2540 | -8/Garrison | Core integrity fell below 50% 2567 | -8/Garrison | Lost 7 parts (1p2n1u3w) 2872 | -8/Garrison | Build established: Scavenger-Mutant 3072 | -8/Garrison | Entered Materials 3223 | -8/Materials | Lost 3 parts (1p2n) 3319 | -8/Materials | Core integrity fell below 20% 3392 | -8/Materials | Discovered new exit (range 15) 3421 | -8/Materials | Entered Factory 3421 | -7/Factory | Evolved 2 slots: Propulsion x2 3681 | -7/Factory | Core integrity fell below 50% 3700 | -7/Factory | Crushed by falling debris 3722 | -7/Factory | Crushed by falling debris 3729 | -7/Factory | Lost 14 parts (1p9n4w) 3974 | -7/Factory | Build established: Mutant 5181 | -7/Factory | Cargo convoy interrupted 6344 | -7/Factory | Self-destructed Last Messages --------------- 04682_ System corrupted: Heat flow error (+181). 04842_ >SMDIRKLGQLGXY9KRMA&E QCRN JAS 04876_ System corrupted: Substantial component data lost. 04904_ ALERT: Cargo convoy en route, clear transfer corridor. 04923_ System corrupted: Component data lost. 05081_ System corrupted: Energy discharge (-36). 05181_ ALERT: Cargo convoy interrupted, initiating access lockdown. 05205_ System corrupted: Component data lost. 05505_ ALERT: Rogue bot located, Programmers report to Factory Zone 4K. 05593_ IQBWM#=8D|PJYUQY7Z>DGYYK JEE/8ZDZ=3OJ1 05734_ System corrupted: IFF burst signal emitted. 05904_ System corrupted: Heat flow error (+273). 05921_ ALERT: Rogue bot located, Programmers report to Factory Zone 2N. 05998_ System corrupted: Heat flow error (+241). 06073_ System corrupted: Heat flow error (+166). 06171_ ALERT: Rogue bot located, Programmers report to Factory Zone 5N. 06238_ System corrupted: Heat flow error (+290). 06287_ System corrupted: Component data lost. 06302_ System corrupted: Heat flow error (+188). 06317_ System corrupted: Heat flow error (+285). Map ----- +----------------------------------------------------+ | # [ #??####### #????????? | | # [ #?? # [ #????????? | | # ] #? # #????????? | | # # """ # #????????? | | # # " # #????????? | | # # # ## #????????? | | + # #?########????????? | | # # #?????????????????? | | ############ # +?????????????????? | | # ! ??# / #?????????????????? | | # ???# # #?????????????????? | | # """ ""????# %% #?????????????????? | | # """ ""????# ] # ##?????????????????? | | + """ ""????# #??????????????????? | | # "" ""???# #??????????????????? | | # "" ""???#" " #??????????????????? | | # ??#" " ##?????????????????? | | ##########??#" " #?????????????????? | | #????????????# " #?????????????????? | | #????????????#""""""""" =* #?????????????????? | | ################# ###[%=%!#?????????????????? | | # #??####??#!!%*=#?????????????????? | | # #????????###*###?????????????????? | | # #????????#!#=#???????????????????? | | # #???????####%#???????????????????? | | # #???????#@##%#???????????????????? | | # #???????####!#???????????????????? | | + #??????????#%#???????????????????? | | * # #??????????#%#???????????????????? | | # #??????????# #???????????????????? | | # #??????????# #???????????????????? | | #### #??????????? ????????????????????? | | ???# #??????????? ????????????????????? | | ???##############??????????? ????????????????????? | | ???????????????????????????? ????????????????????? | | ???????????????????????????? ????????????????????? | | ???????????????????????????? ????????????????????? | | ???????????????????????????? ????????????????????? | | ?????????????????????????????????????????????????? | | ?????????????????????????????????????????????????? | | ?????????????????????????????????????????????????? | | ?????????????????????????????????????????????????? | | ?????????????????????????????????????????????????? | | ?????????????????????????????????????????????????? | | ?????????????????????????????????????????????????? | | ?????????????????????????????????????????????????? | | ?????????????????????????????????????????????????? | | ?????????????????????????????????????????????????? | | ?????????????????????????????????????????????????? | | ?????????????????????????????????????????????????? | +----------------------------------------------------+ Best States ------------- Heat Dissipation 45 Energy Generation 14 Energy Capacity 265 Matter Stores 300 Matter Capacity 300 Sight Range 16 Terrain Scan Density 10 Armor Coverage 225 Evasion (%) 65 Recoil Reduction 4 Item Schematics ----------------- None Robot Schematics ------------------ None Fabricated ------------ Nothing Alien Tech Used ----------------- None Achievements -------------- I Survived The Infestation Challenges ------------ None Game ------ Seed StorageArchitectKatana Manual? 0 Play Time 00:25:52 Cumulative 14.0 hours Start 2024.04.28 @ 13:33:06 End 2024.04.28 @ 18:04:37 Sessions 2 Manual Loads 0 Difficulty Rogue Special Mode None Game No. 24 Rogue 24 Adventurer 0 Explorer 0 Win Type - Total 0 Types 0/0/0/0/0/0/0/0/0 Lore% 10 Gallery% 24 Achievement% 23 Wizard Run 0 Options --------- Layout 0 ASCII 0 Keyboard 1 Movement Numpad Keybinds 0 Fullscreen 1 Font 24/X11 Map View 76x50 Zoom Use 0% Tactical HUD 1 Map Filters NONE Filters NONE Steam 1 RUN: a51541dd-bdf5-45be-ad71-0c7e59387e78